bitfinex-derivatives/quotes_SOLF0:USTF0_20250224
["timestamp","ask_amount","ask_price","bid_price","bid_amount"]
[1740439479388,0.05399738,142.5,142.47,0.04515649]
[1740439479580,7.0161,142.56,142.47,191.04515649]
[1740439479780,0.04803816,142.5,142.47,161.0]
[1740439479984,0.04803816,142.5,142.47,161.05333124]
[1740439480180,7.0154,142.57,142.47,161.05333124]
[1740439480385,0.05214249,142.5,142.47,161.05333124]
[1740439480685,0.05066487,142.5,142.47,161.05254147]
[1740439484484,3.9019,142.57,142.47,0.05254147]
[1740439484684,70.3300197,142.48,142.45,28.69611111]
[1740439484886,70.3300197,142.46,142.44,66.71843037]
[1740439485089,14.7,142.48,142.42,169.99038228]
[1740439485285,14.7,142.48,142.42,90.07558228]
[1740439485482,20.86,142.47,142.44,0.04494423]
[1740439485689,20.85915548,142.47,142.44,0.04494423]
[1740439485990,14.7,142.48,142.42,28.7191784]
[1740439486188,7.0218,142.44,142.42,28.7191784]
[1740439486484,35.56,142.48,142.42,28.7191784]
[1740439486991,0.05184264,142.46,142.44,0.04883774]
[1740439487393,0.05184264,142.46,142.13,37.77318939]
[1740439487691,35.56,142.48,142.3,0.09378197]
[1740439487986,56.65,142.48,142.23,352.8221]
[1740439488186,58.05370578,142.48,142.23,183.78]
[1740439488387,20.86,142.46,142.27,0.09378197]
[1740439488593,7.0258,142.36,142.34,0.04843865]
[1740439488889,14.7,142.35,142.24,0.09378197]
[1740439489087,21.7262,142.35,142.34,0.05122127]
[1740439489389,14.7,142.35,142.33,0.05114727]
[1740439489780,35.60610426,142.35,142.33,5.65e-05]
[1740439489984,35.60610426,142.35,142.14,8.0421]
[1740439490186,20.86,142.33,142.16,0.09383847]
[1740439490490,194.0,142.34,142.17,0.09383847]
[1740439490690,194.0,142.34,142.19,0.09383847]
[1740439491088,0.04966125,142.28,142.25,0.05251009]
[1740439491287,0.04966125,142.28,142.11,4.1416]
[1740439491493,7.0289,142.3,142.19,0.09383847]
[1740439491702,0.04763762,142.21,142.19,0.09383847]
[1740439491996,14.7,142.25,142.23,0.05151437]
[1740439492191,0.05366833,142.21,142.19,0.09383847]
[1740439492392,14.7,142.25,142.18,0.09383847]
[1740439492597,14.7,142.25,142.14,7.0362]
[1740439492794,14.7,142.25,142.14,0.04433847]
[1740439492990,14.7,142.25,142.11,7.0376]
[1740439493194,14.7,142.25,142.13,0.04433847]
[1740439493498,0.05199064,142.19,142.17,0.04841003]
[1740439493996,0.04642914,142.19,142.17,0.04841003]
[1740439497800,0.04642914,142.19,142.07,8.0774]
[1740439497990,0.04642914,142.19,142.11,0.04433847]
[1740439498196,7.0326,142.22,142.11,0.04433847]
[1740439498499,7.0326,142.22,142.1,7.0384]
[1740439498796,0.05043355,142.17,142.15,0.05309629]
[1740439498997,7.0316,142.24,142.15,0.05309629]
[1740439499193,0.04470721,142.17,142.05,344.86]
[1740439499393,41.90120394,142.25,142.18,0.0456114]
[1740439499594,41.90120394,142.25,141.97,7.901]
[1740439499791,0.0507045,142.23,142.1,0.04472178]
[1740439499994,1.23695696,142.24,142.1,0.04472178]
[1740439500200,0.05197746,142.18,141.98,1.4086491]
[1740439500401,41.90120394,142.25,142.11,7.0376]
[1740439500601,1.23748685,142.24,142.11,7.0376]
[1740439500802,0.04519103,142.19,141.98,1.4086491]
[1740439501101,1.23748685,142.24,141.98,1.4086491]
[1740439501298,1.332e-05,142.1,142.09,7.039]
[1740439501504,1.23748685,142.24,141.98,1.4086491]
[1740439501698,7.0322,142.23,141.98,1.4086491]
[1740439502007,41.90120394,142.25,141.99,14.0878]
[1740439502505,0.05122418,142.13,142.11,0.04474597]
[1740439502700,7.0339,142.2,141.99,175.0878]
[1740439502901,235.90120394,142.25,142.11,0.05280421]
[1740439503107,0.04515496,142.13,142.11,0.05280421]
[1740439503314,14.72,142.13,141.99,161.0]
[1740439503606,14.72,142.13,142.11,0.05315909]
[1740439503796,21.09,142.12,141.85,14.1013]
[1740439503996,0.05067061,142.07,141.6,184.16]
[1740439504201,1.23506742,142.11,141.71,12.3026]
[1740439504503,48.94,142.08,141.71,12.3026]
[1740439504703,1.23316651,142.07,141.71,12.3026]
[1740439504906,51.58102234,142.06,141.61,1.41232963]
[1740439505104,0.05288072,141.91,141.88,5.533e-05]
[1740439505411,221.37944326,141.9,141.62,12.3026]
[1740439505606,41.95,141.88,141.62,12.3026]
[1740439505810,2.64290782,141.87,141.62,12.3026]
[1740439506002,1.23316651,141.86,141.53,8.0415]
[1740439506206,194.0,141.85,141.53,8.0415]
[1740439506406,0.04744797,141.76,141.73,0.04935543]
[1740439506607,7.0569,141.73,141.53,8.0415]
[1740439506904,1.23032066,141.72,141.52,370.71792957]
[1740439507104,41.95,141.74,141.52,370.71792957]
[1740439507105,1.23032066,141.73,141.52,370.71792957]
[1740439507305,1.23032066,141.72,141.52,370.71792957]
[1740439507514,1.23032066,141.71,141.52,370.69612957]
[1740439507710,41.95,141.63,141.52,359.61582957]
[1740439507910,227.72222991,141.62,141.61,1.903e-05]
[1740439508108,227.72222991,141.62,141.52,359.61582957]
[1740439508509,206.63222991,141.62,141.52,359.61582957]
[1740439508818,7.0669,141.53,141.52,359.61582957]
[1740439509014,7.0669,141.53,141.44,275.24618463]
[1740439509015,14.72,141.53,141.31,4.2695]
[1740439509516,14.72,141.53,141.5,0.04651119]
[1740439509714,14.72,141.52,141.31,4.2695]
[1740439509911,5.343e-05,141.43,141.31,4.2695]
[1740439510218,14.72,141.52,141.45,7.0709]
[1740439510416,14.72,141.52,141.31,4.2695]
[1740439510417,14.74,141.6,141.34,199.34]
[1740439510620,1.41222991,141.62,141.34,199.34]
[1740439511014,14.74,141.77,141.34,184.6]
[1740439511216,2.39e-06,141.49,141.47,0.05]
[1740439511416,14.74,141.77,141.48,184.6]
[1740439511617,14.74,141.77,141.49,8.3146]
[1740439512220,27.20120394,141.66,141.49,8.3146]
[1740439512422,7.11609193,141.63,141.61,0.05104125]
[1740439512624,7.11609193,141.63,141.32,184.7]
[1740439512625,0.05409193,141.63,141.32,184.7]
[1740439512922,14.74,141.65,141.35,8.0202]
[1740439513519,14.74,141.65,141.36,1.41482739]
[1740439513715,14.74,141.65,141.49,0.04695682]
[1740439513920,0.04666083,141.51,141.49,0.04695682]
[1740439514116,14.76,141.55,141.36,1.41482739]
[1740439514420,0.05062697,141.51,141.49,0.04949673]
[1740439514629,14.76,141.55,141.36,1.41482739]
[1740439514824,0.05226097,141.51,141.49,0.04701117]
[1740439515024,14.76,141.55,141.36,1.41482739]
[1740439515224,14.76,141.62,141.37,14.76]
[1740439515425,14.76,141.62,141.49,0.04716582]
[1740439515732,14.76,141.62,141.45,184.7]
[1740439516020,14.76,141.62,141.46,8.5581]
[1740439516728,14.76,141.62,141.47,4.2724]
[1740439517128,0.05401849,141.55,141.53,0.0497146]
[1740439517429,14.76,141.66,141.53,0.0497146]
[1740439517625,1.01026429,141.75,141.49,184.82]
[1740439517827,15.9892707,141.74,141.49,184.82]
[1740439518025,1.2292707,141.73,141.49,184.82]
[1740439518226,14.76,141.74,141.5,1.41342756]
[1740439518628,20.86,141.86,141.61,0.04978511]
[1740439518629,8.649e-05,141.63,141.61,0.04978511]
[1740439518930,35.67354221,141.8,141.62,167.6891369]
[1740439519231,35.67354221,141.8,141.63,5.39063019]
[1740439519433,35.67354221,141.8,141.64,1.41203049]
[1740439519623,35.67354221,141.8,141.64,162.41203049]
[1740439519827,35.67354221,141.8,141.64,220.41203049]
[1740439520028,3.903e-05,141.73,141.71,0.05284995]
[1740439520532,14.76,141.91,141.64,162.41203049]
[1740439520732,14.76,141.91,141.64,1.41203049]
[1740439521324,0.04669235,141.79,141.76,0.04877314]
[1740439521725,14.76,141.91,141.64,220.41203049]
[1740439521935,14.76,141.91,141.64,1.41203049]
[1740439522136,35.67354221,141.97,141.64,1.41203049]
[1740439522430,7.0479,141.92,141.84,7.0511]
[1740439522635,14.76,141.96,141.78,184.78]
[1740439522831,8.47233827,142.0,141.79,8.2099]
[1740439523036,3.43e-06,141.89,141.79,8.18569311]
[1740439523432,7.0447,141.98,141.89,7.0485]
[1740439523734,8.47233827,142.0,141.79,8.18569311]
[1740439524333,0.04447507,141.91,141.88,0.04486025]
[1740439524534,14.76,141.9,141.88,0.04486025]
[1740439524834,14.76,141.9,141.68,184.68]
[1740439525132,7.052,141.83,141.72,7.0569]
[1740439525338,0.05377159,141.8,141.78,0.04605442]
[1740439525833,14.76,141.9,141.68,184.68]
[1740439526034,0.04971503,141.8,141.78,0.05033753]
[1740439526534,21.8085,141.9,141.68,184.68]
[1740439526731,0.05200639,141.8,141.78,0.04733178]
[1740439527037,21.8085,141.9,141.69,4.21708268]
[1740439528130,0.05165248,141.81,141.78,0.05359217]
[1740439528536,14.76,141.9,141.7,165.0615]
[1740439528737,0.05246413,141.81,141.7,4.04137752]
[1740439528938,14.74,141.8,141.65,3.9457]
[1740439529126,14.74,141.8,141.7,7.0582]
[1740439529333,14.74,141.8,141.65,3.9457]
[1740439529529,14.74,141.8,141.69,7.0585]
[1740439529733,14.74,141.8,141.65,3.9457]
[1740439529934,0.04745355,141.76,141.73,0.05113925]
[1740439531433,0.04745355,141.76,141.65,3.9457]
[1740439531739,94.71839834,141.79,141.66,1.41183114]
[1740439532333,72.41872657,141.78,141.66,1.41183114]
[1740439532741,0.05327799,141.73,141.72,7.0574]
[1740439532941,72.41872657,141.78,141.72,7.0574]
[1740439533346,14.74,141.77,141.56,184.68]
[1740439534043,21.795,141.77,141.66,7.0602]
[1740439534242,14.74,141.77,141.66,7.0602]
[1740439534545,0.04822322,141.73,141.7,0.04929113]
[1740439535043,0.04822322,141.73,141.56,345.68]
[1740439535239,72.41872657,141.82,141.56,345.68]
[1740439535444,14.74,141.81,141.56,345.68]
[1740439535635,7.0539,141.79,141.56,345.68]
[1740439535837,21.92291332,141.76,141.56,345.68]
[1740439536040,0.05306943,141.69,141.66,0.04607526]
[1740439536437,21.92291332,141.76,141.67,7.0598]
[1740439536637,0.05228454,141.69,141.67,7.0598]
[1740439536838,21.92291332,141.76,141.67,7.0598]
[1740439537040,0.04878637,141.69,141.68,4.2104]
[1740439537338,72.41872657,141.79,141.68,11.2698]
[1740439537534,72.41872657,141.79,141.68,4.2104]
[1740439537744,72.41872657,141.79,141.69,189.0669]
[1740439538043,33.43992657,141.79,141.69,189.0669]
[1740439538345,15.73412657,141.79,141.78,7.0544]
[1740439538744,2.657e-05,141.79,141.78,7.0544]
[1740439539446,95.81399682,141.81,141.8,7.0534]
[1740439539648,0.05196578,141.8,141.77,0.0501819]
[1740439539838,0.05196578,141.8,141.73,191.0]
[1740439540045,95.81399682,141.83,141.69,189.0669]
[1740439540344,95.81399682,141.83,141.69,190.47843221]
[1740439540739,95.81399682,141.83,141.7,1.4114326]
[1740439541140,0.04949232,141.78,141.75,0.04782237]
[1740439542235,7.0554,141.76,141.75,0.04782237]
[1740439542840,14.74,141.77,141.75,0.04782237]
[1740439543047,14.74,141.77,141.67,7.0597]
[1740439543348,21.7949,141.77,141.59,184.7]
[1740439543947,7.0556,141.76,141.65,7.0605]
[1740439544144,7.0556,141.76,141.69,0.05048378]
[1740439544345,7.0556,141.76,141.59,352.12175364]
[1740439544546,0.04924286,141.74,141.71,0.04606024]
[1740439544741,7.0556,141.76,141.59,352.12175364]
[1740439544947,0.04557277,141.68,141.65,7.11449856]
[1740439545147,7.0559,141.75,141.59,352.12175364]
[1740439545345,14.74,141.77,141.65,7.0605]
[1740439545646,0.04792372,141.72,141.59,184.7]
[1740439545841,0.04792372,141.72,141.7,0.04894427]
[1740439546150,0.05172656,141.72,141.64,7.0612]
[1740439546351,0.05172656,141.72,141.7,0.04962488]
[1740439546548,8.1963,141.76,141.65,7.0605]
[1740439546753,0.05426993,141.72,141.7,0.05370253]
[1740439548554,0.05426993,141.72,141.7,7.11200253]
[1740439548949,6.993e-05,141.72,141.71,7.0579]
[1740439549253,6.993e-05,141.72,141.64,12.76003604]
[1740439549446,179.90667893,141.8,141.65,1.41193081]
[1740439549644,179.90667893,141.8,141.65,168.83368445]
[1740439550354,0.04634858,141.74,141.71,0.05248257]
[1740439550550,179.90667893,141.8,141.65,168.83368445]
[1740439550746,0.04654249,141.74,141.71,0.04997716]
[1740439551151,77.56790184,141.82,141.65,168.83368445]
[1740439551356,0.0479028,141.74,141.71,0.05425886]
[1740439551551,77.56790184,141.82,141.65,168.83368445]
[1740439551856,2.737e-05,141.71,141.68,0.04689605]
[1740439552052,77.56790184,141.82,141.68,167.42175364]
[1740439552650,77.56790184,141.82,141.75,7.0559]
[1740439552852,77.56790184,141.82,141.68,167.42175364]
[1740439553357,0.04820712,141.76,141.74,0.05101125]
[1740439553660,108.93351826,141.82,141.74,0.05101125]
[1740439554756,0.05151924,141.79,141.63,184.72]
[1740439555060,302.93351826,141.82,141.63,184.72]
[1740439555061,14.74,141.78,141.63,184.72]
[1740439555258,8.1448,141.77,141.63,184.72]
[1740439555658,8.1448,141.77,141.63,191.7815]
[1740439555962,0.05064526,141.71,141.69,0.05097268]
[1740439556361,0.04651485,141.71,141.69,0.05097268]
[1740439556562,0.04651485,141.71,141.54,167.42175364]
[1740439556756,311.07831826,141.77,141.52,184.7]
[1740439557158,311.07831826,141.77,141.61,7.0627]
[1740439557764,0.04705167,141.7,141.68,0.04920616]
[1740439557957,0.04705167,141.7,141.52,184.7]
[1740439558262,22.77969698,141.7,141.52,184.7]
[1740439558461,43.39835636,141.7,141.52,184.7]
[1740439558856,32.45875636,141.7,141.52,184.7]
[1740439559061,9.51595636,141.7,141.6,0.05235244]
[1740439559361,168.95503529,141.71,141.59,14.1277]
[1740439559656,168.95503529,141.71,141.57,14.74]
[1740439559860,168.95503529,141.71,141.58,1.27488172]
[1740439560057,168.95503529,141.71,141.58,22.36488172]
[1740439560254,168.95503529,141.71,141.69,7.0585]
[1740439560452,34.16954548,141.7,141.69,7.0585]
[1740439560652,34.04524548,141.7,141.69,7.10971079]
[1740439561867,96.06731742,141.71,141.7,7.0584]
[1740439562063,58.39831742,141.71,141.7,7.0584]
[1740439562361,182.30960395,141.73,141.69,167.47296443]
[1740439562565,158.64546267,141.73,141.69,167.47296443]
[1740439562766,158.64546267,141.73,141.72,7.0574]
[1740439563156,4.3109,141.83,141.72,7.0574]
[1740439563356,0.04630254,141.74,141.72,7.0574]
[1740439563561,4.3109,141.83,141.76,0.04472879]
[1740439563763,4.3109,141.83,141.71,7.0579]
[1740439563956,0.04853415,141.81,141.66,184.72]
[1740439564162,4.3109,141.83,141.76,0.05172905]
[1740439564462,0.05325497,141.75,141.66,205.81]
[1740439564661,0.04598144,141.81,141.79,7.0537]
[1740439564860,27.33922316,141.84,141.67,21.09]
[1740439565063,1.506e-05,141.81,141.79,0.04724198]
[1740439565258,45.7387548,141.9,141.8,184.7]
[1740439565667,45.7387548,141.9,141.81,1.41033777]
[1740439565869,45.7387548,141.9,141.81,168.83209141]
[1740439566369,0.04463347,141.85,141.83,7.1034742]
[1740439566665,0.04463347,141.85,141.83,0.0518742]
[1740439566868,3.347e-05,141.85,141.84,7.0514]
[1740439567069,3.347e-05,141.85,141.84,174.47315364]
[1740439567459,39.72122614,142.01,141.89,7.0489]
[1740439567659,27.34462614,142.01,141.89,167.42175364]
[1740439568068,27.34462614,142.01,141.9,7.0481]
[1740439568667,0.05297556,141.97,141.94,0.04493478]
[1740439570872,0.05297556,141.97,141.94,167.46668842]
[1740439571172,8.1717,142.12,141.95,16.12894681]
[1740439571366,6.99,142.31,141.95,16.12894681]
[1740439571367,4.1756,142.21,141.95,238.64070045]
[1740439571669,12.3752,142.21,141.96,1.27168212]
[1740439572067,12.3752,142.21,141.97,1.40874832]
[1740439572262,0.04466094,142.1,142.07,0.05031082]
[1740439572465,0.04466094,142.1,142.02,7.0423]
[1740439572668,0.05240959,142.05,142.02,7.0423]
[1740439572970,0.05240959,142.05,141.98,167.42175364]
[1740439572971,14.72,142.17,141.98,167.42175364]
[1740439573172,0.04854698,142.05,142.02,0.04547637]
[1740439573365,14.72,142.17,141.97,1.40874832]
[1740439573561,0.04917133,142.05,142.02,4.77e-06]
[1740439573761,14.7,142.05,141.96,77.84560974]
[1740439573964,14.7,142.05,141.95,116.25476209]
[1740439574369,56.96,142.05,141.95,96.41396209]
[1740439574566,1.23669769,142.04,141.95,53.8309621]
[1740439574871,0.04875148,142.01,141.99,7.563e-05]
[1740439576674,14.7,142.09,141.99,7.563e-05]
[1740439576876,15.70709342,142.19,142.03,53.8309621]
[1740439577071,1.23800072,142.18,142.03,53.8309621]
[1740439577275,1.23800072,142.18,142.04,53.8309621]
[1740439577477,1.23800072,142.18,142.03,53.8309621]
[1740439577676,1.23800072,142.18,141.93,4.1291]
[1740439577875,1.23800072,142.18,142.09,0.04836061]
[1740439577876,0.05346104,142.12,142.09,0.04836061]
[1740439578077,216.40800072,142.18,142.0,53.8309621]
[1740439578278,0.05022343,142.12,141.97,4.0651]
[1740439578474,1.23800072,142.17,141.98,53.8309621]
[1740439578880,7.0385,142.1,141.97,4.0651]
[1740439579069,14.7,142.09,141.98,53.8309621]
[1740439579475,0.05328631,142.05,142.02,0.04504465]
[1740439579778,0.05328631,142.05,141.93,4.1291]
[1740439579984,14.7,142.09,141.98,53.8309621]
[1740439579985,21.7391,142.09,141.98,53.8309621]
[1740439580275,14.7,142.09,141.97,53.8309621]
[1740439580480,14.7,142.09,141.98,53.8309621]
[1740439580876,0.05387918,142.05,142.02,0.05192812]
[1740439582875,208.7,142.27,142.04,53.8309621]
[1740439583079,7.0334,142.21,142.09,53.8309621]
[1740439583280,3.9439,142.26,142.09,53.8309621]
[1740439583475,1.23882416,142.25,142.03,4.0455]
[1740439583675,1.23882416,142.25,142.03,11.087]
[1740439583981,0.04465839,142.15,142.13,0.04527193]
[1740439584176,0.04465839,142.15,142.05,53.8309621]
[1740439584378,7.0361,142.15,142.13,0.04997687]
[1740439584584,7.0361,142.15,142.05,53.8309621]
[1740439584778,7.08718471,142.15,142.13,0.05363129]
[1740439584978,7.0361,142.15,142.05,53.8309621]
[1740439585479,0.04977704,142.11,142.09,0.0533255]
[1740439585676,14.7,142.17,142.09,0.0533255]
[1740439585878,0.04637438,142.11,142.09,0.0533255]
[1740439586082,194.0,142.22,142.09,0.0533255]
[1740439586275,0.04585051,142.11,142.03,4.0455]
[1740439586477,7.0356,142.16,142.14,0.05006043]
[1740439586682,7.0356,142.16,142.06,53.8309621]
[1740439586884,7.08849198,142.16,142.14,0.05032293]
[1740439587181,0.04745206,142.16,142.05,53.8309621]
[1740439587376,1.23771569,142.19,142.05,53.8309621]
[1740439587578,0.04532266,142.12,142.09,0.0527032]
[1740439587783,194.0,142.2,142.06,53.8309621]
[1740439587977,0.05027777,142.12,142.09,0.04973986]
[1740439588177,7.0363,142.15,142.02,7.0421]
[1740439588377,0.05390123,142.12,142.09,0.0464293]
[1740439588884,0.05390123,142.12,142.1,53.8309621]
[1740439589387,0.05390123,142.12,142.09,0.0464293]
[1740439589586,0.05390123,142.12,142.1,53.8309621]
[1740439589887,0.05390123,142.12,142.09,0.0464293]
[1740439590087,0.05390123,142.12,142.1,53.8309621]
[1740439590487,0.05390123,142.12,142.11,53.8309621]
[1740439590682,1.23642705,142.25,142.11,53.8309621]
[1740439590882,1.23642705,142.25,142.09,0.0464293]
[1740439590883,14.7,142.26,142.2,53.8309621]
[1740439591083,14.7,142.26,142.18,53.8309621]
[1740439591387,71.68823133,142.3,142.19,53.8309621]
[1740439591592,7.0298,142.28,142.17,53.8309621]
[1740439591886,0.05230922,142.26,142.23,0.05408431]
[1740439592088,1.23650522,142.29,142.14,53.8309621]
[1740439592283,7.0316,142.24,142.23,0.05193491]
[1740439592490,71.68823133,142.3,142.18,53.8309621]
[1740439592689,0.05144393,142.25,142.22,0.0535942]
[1740439593882,14.75144393,142.25,142.22,0.0535942]
[1740439594384,14.75144393,142.25,142.22,9.42e-05]
[1740439594887,7.0321,142.23,142.22,9.42e-05]
[1740439595788,8.26619225,142.23,142.22,9.42e-05]
[1740439596190,7.0352,142.17,142.03,19.4157]
[1740439596385,194.0,142.24,142.09,53.8309621]
[1740439596586,14.7,142.25,142.09,53.8309621]
[1740439596885,194.0,142.24,142.03,12.3738]
[1740439597086,194.0,142.23,142.08,53.8309621]
[1740439597284,7.0369,142.14,142.12,0.048315]
[1740439597480,7.0369,142.14,142.12,0.005915]
[1740439597688,14.68,142.15,142.03,12.3738]
[1740439597881,7.0372,142.13,142.08,53.8309621]
[1740439598289,14.68,142.15,142.03,8.1246]
[1740439598693,0.04594863,142.1,142.08,0.04908186]
[1740439598887,14.68,142.15,142.08,0.04908186]
[1740439599092,0.04879467,142.1,142.08,0.04908186]
[1740439599287,14.68,142.15,142.08,0.04908186]
[1740439599489,0.04450842,142.1,142.08,0.04908186]
[1740439599683,14.68,142.15,142.08,0.04908186]
[1740439600190,7.039,142.09,142.08,0.04908186]
[1740439600391,14.68,142.15,142.08,0.04908186]
[1740439600886,0.04902973,142.13,142.08,0.04908186]
[1740439601486,7.0382,142.11,142.08,0.04908186]
[1740439602087,7.0388,142.1,142.08,0.04908186]
[1740439602293,0.04902973,142.13,141.93,7.9513]
[1740439602495,1.23288395,142.13,141.98,44.76938746]
[1740439602796,1.23288395,142.13,141.93,7.9513]
[1740439602992,1.23288395,142.13,141.98,44.76938746]
[1740439603192,7.0403,142.07,141.95,7.0458]
[1740439603495,0.05301122,142.02,142.0,0.04768749]
[1740439603686,14.68,142.04,142.0,0.04768749]
[1740439603885,0.05287685,142.02,141.93,14.9981]
[1740439604085,14.68,142.04,141.99,0.05068646]
[1740439604285,14.68,142.04,141.91,7.0477]
[1740439604286,0.04483369,141.99,141.91,7.0477]
[1740439604490,14.68,142.04,141.92,44.76938746]
[1740439604887,14.68,142.04,141.83,4.2464]
[1740439605198,14.68,142.04,141.92,44.76938746]
[1740439605399,7.08894473,141.99,141.97,0.05335315]
[1740439605700,7.08894473,141.99,141.92,44.76938746]
[1740439605701,14.68,142.04,141.83,4.2464]
[1740439605902,1.23189445,142.03,141.89,44.76938746]
[1740439606190,194.0,142.02,141.88,44.76938746]
[1740439606396,1.23189445,142.01,141.89,44.76938746]
[1740439606786,194.0,142.0,141.83,4.2464]
[1740439606987,216.40189445,141.99,141.8,4.1197]
[1740439607187,195.23189445,141.98,141.84,44.76938746]
[1740439607397,1.23111836,141.97,141.73,7.9264]
[1740439607596,1.23111836,141.97,141.84,44.76938746]
[1740439607597,7.0479,141.92,141.84,44.76938746]
[1740439607797,14.7,141.91,141.74,4.1197]
[1740439608100,14.7,141.91,141.86,44.76938746]
[1740439608292,194.0,141.98,141.74,4.1197]
[1740439608293,0.04643772,141.96,141.94,0.04545586]
[1740439608493,14.7,141.95,141.94,0.04545586]
[1740439609003,7.0461,141.95,141.94,0.04545586]
[1740439610994,0.04643772,141.96,141.94,44.81484332]
[1740439611191,36.00798568,142.05,141.95,44.76938746]
[1740439611391,36.00798568,142.03,142.02,44.76938746]
[1740439611700,36.00798568,142.03,141.95,7.9199]
[1740439611996,36.00798568,142.03,142.02,44.71776101]
[1740439612799,7.0407,142.06,142.02,44.71776101]
[1740439612993,7.0407,142.06,142.03,44.71776101]
[1740439613402,7.0407,142.06,141.96,7.045]
[1740439613601,7.0407,142.06,142.03,44.71776101]
[1740439614100,7.0407,142.06,141.97,7.0449]
[1740439614303,7.0407,142.06,142.03,44.71776101]
[1740439614696,7.0407,142.06,141.97,7.0449]
[1740439614902,7.0407,142.06,142.03,44.71776101]
[1740439615304,7.0407,142.06,141.97,7.0449]
[1740439615497,7.0407,142.06,142.03,44.71776101]
[1740439615798,3.9637,142.14,142.05,44.71776101]
[1740439616005,15.93225996,142.13,142.06,44.71776101]
[1740439616198,14.7,142.13,142.07,44.71776101]
[1740439616403,7.0388,142.1,142.0,7.0431]
[1740439616693,8.97529589,142.16,142.12,44.71776101]
[1740439616894,8.97529589,142.16,142.15,44.71776101]
[1740439617197,85.76852112,142.17,142.15,44.71776101]
[1740439617402,85.76852112,142.17,142.06,184.44]
[1740439617403,66.33962112,142.17,142.16,44.71776101]
[1740439617806,42.97052112,142.17,142.16,44.71776101]
[1740439618205,9.02842819,142.19,142.16,44.71776101]
[1740439618506,9.02842819,142.19,142.06,351.86175364]
[1740439618707,9.02842819,142.19,142.18,44.71776101]
[1740439618999,9.08097652,142.19,142.18,44.71776101]
[1740439619400,9.08097652,142.19,142.16,0.04616525]
[1740439619997,7.035,142.17,142.16,0.04616525]
[1740439621209,7.0347,142.18,142.16,0.04616525]
[1740439621810,7.035,142.17,142.16,0.04616525]
[1740439622010,0.05254833,142.19,142.16,0.04616525]
[1740439623921,0.05254833,142.19,142.18,21.14962703]
[1740439624113,0.05254833,142.19,142.17,21.14962703]
[1740439624609,0.05254833,142.19,142.16,0.04616525]
[1740439624912,0.05254833,142.19,142.18,21.14962703]
[1740439625114,7.0307,142.26,142.18,28.18402703]
[1740439625309,3.9478,142.27,142.23,21.14962703]
[1740439625508,14.68,142.29,142.25,21.14962703]
[1740439625705,4.2507,142.31,142.25,21.14962703]
[1740439625911,18.9307,142.31,142.26,21.14962703]
[1740439626112,14.68,142.31,142.27,21.14962703]
[1740439626307,0.04750831,142.3,142.29,21.14962703]
[1740439626521,27.03268979,142.36,142.3,21.14962703]
[1740439627216,27.03268979,142.36,142.32,21.14962703]
[1740439627711,27.03268979,142.36,142.33,0.04596762]
[1740439628010,27.03268979,142.36,142.2,171.71355364]
[1740439628211,27.08429621,142.36,142.33,0.04682627]
[1740439628417,27.03268979,142.36,142.2,171.71355364]
[1740439628614,27.08677987,142.36,142.33,0.05282656]
[1740439628812,27.03268979,142.36,142.25,21.14962703]
[1740439629113,1.23397536,142.35,142.33,4.277e-05]
[1740439629314,199.31087536,142.35,142.22,21.14962703]
[1740439629519,5.29477536,142.34,142.21,21.14962703]
[1740439629812,1.23397536,142.33,142.14,4.0484]
[1740439630017,194.0,142.32,142.19,21.14962703]
[1740439630315,0.04776796,142.25,142.22,2.514e-05]
[1740439630518,14.66,142.24,142.15,10.05732703]
[1740439630720,23.2429,142.23,142.1,184.18]
[1740439630919,7.034,142.2,142.15,10.05732703]
[1740439631121,23.2429,142.23,142.15,10.05732703]
[1740439631318,23.2429,142.23,142.16,10.05732703]
[1740439631519,0.04710348,142.2,142.18,0.05211022]
[1740439631720,0.04710348,142.2,142.1,184.18]
[1740439632022,4.2686,142.29,142.19,17.09142703]
[1740439632325,0.05035567,142.25,142.24,10.05732703]
[1740439632526,0.05035567,142.25,142.23,10.1049669]
[1740439632726,14.66,142.3,142.23,10.1049669]
[1740439632927,0.04868354,142.25,142.23,10.05732703]
[1740439633127,4.3143,142.33,142.23,10.05732703]
[1740439633327,0.04745099,142.25,142.24,10.05732703]
[1740439633528,14.66,142.32,142.1,184.18]